[Event "Titled Tuesday Blitz November 29 Early 2022"]
[White "Forgacs, Attila Jr."]
[Black "Nepo"]
[WhiteFideId "773654"]
[WhiteElo "2168"]
[BlackElo "2161"]
[Result "0-1"]
[Round "11"]
[TimeControl "180+1"]
[Date "2022.11.30"]
[WhiteClock "0:00:12"]
[BlackClock "0:00:34"]

1. e4 {[%clk 0:03:00]}  e5 {[%clk 0:02:52]} 2. Nf3 {[%clk 0:03:00]}  Nf6 {[%clk 0:02:47]} 3. Nxe5 {[%clk 0:03:00]}  d6 {[%clk 0:02:46]} 4. Nf3 {[%clk 0:03:01]}  Nxe4 {[%clk 0:02:46]} 5. Bd3 {[%clk 0:03:01]}  Nc5 {[%clk 0:02:38]} 6. Bc4 {[%clk 0:02:54]}  Be7 {[%clk 0:02:36]} 7. d4 {[%clk 0:02:53]}  Ne4 {[%clk 0:02:36]} 8. O-O {[%clk 0:02:50]}  O-O {[%clk 0:02:35]} 9. Re1 {[%clk 0:02:50]}  d5 {[%clk 0:02:36]} 10. Bd3 {[%clk 0:02:50]}  Bf5 {[%clk 0:02:35]} 11. c4 {[%clk 0:02:45]}  c6 {[%clk 0:02:35]} 12. Nc3 {[%clk 0:02:45]}  Bb4 {[%clk 0:02:32]} 13. Bxe4 {[%clk 0:02:32]}  Bxe4 {[%clk 0:02:27]} 14. a3 {[%clk 0:02:23]}  Bxc3 {[%clk 0:02:12]} 15. bxc3 {[%clk 0:02:24]}  Nd7 {[%clk 0:02:11]} 16. cxd5 {[%clk 0:02:23]}  cxd5 {[%clk 0:02:09]} 17. a4 {[%clk 0:02:20]}  Rc8 {[%clk 0:02:09]} 18. Ba3 {[%clk 0:02:20]}  Re8 {[%clk 0:02:09]} 19. Qd2 {[%clk 0:02:20]}  Nb6 {[%clk 0:02:09]} 20. Bc5 {[%clk 0:02:16]}  Nc4 {[%clk 0:02:08]} 21. Qf4 {[%clk 0:02:12]}  b6 {[%clk 0:02:07]} 22. Bb4 {[%clk 0:02:04]}  a5 {[%clk 0:01:53]} 23. Ba3 {[%clk 0:02:02]}  Qd7 {[%clk 0:01:41]} 24. Ng5 {[%clk 0:01:53]}  Bg6 {[%clk 0:01:31]} 25. Nf3 {[%clk 0:01:02]}  Rxe1+ {[%clk 0:01:16]} 26. Nxe1 {[%clk 0:01:02]}  Qxa4 {[%clk 0:01:15]} 27. Qc1 {[%clk 0:00:40]}  Nxa3 {[%clk 0:01:06]} 28. Rxa3 {[%clk 0:00:38]}  Qc6 {[%clk 0:01:05]} 29. Rb3 {[%clk 0:00:37]}  a4 {[%clk 0:01:05]} 30. Ra3 {[%clk 0:00:37]}  b5 {[%clk 0:01:05]} 31. Nf3 {[%clk 0:00:37]}  b4 {[%clk 0:01:04]} 32. Ne5 {[%clk 0:00:34]}  Qc7 {[%clk 0:01:02]} 33. Rxa4 {[%clk 0:00:33]}  bxc3 {[%clk 0:01:02]} 34. h4 {[%clk 0:00:27]}  Be4 {[%clk 0:00:54]} 35. f3 {[%clk 0:00:26]}  Bf5 {[%clk 0:00:54]} 36. g4 {[%clk 0:00:25]}  Be6 {[%clk 0:00:54]} 37. Kg2 {[%clk 0:00:14]}  f6 {[%clk 0:00:53]} 38. Nd3 {[%clk 0:00:13]}  c2 {[%clk 0:00:52]} 39. Nc5 {[%clk 0:00:13]}  Bd7 {[%clk 0:00:44]} 40. Ra2 {[%clk 0:00:11]}  Bb5 {[%clk 0:00:44]} 41. Rxc2 {[%clk 0:00:11]}  Bc4 {[%clk 0:00:44]} 42. Qe1 {[%clk 0:00:10]}  Qc6 {[%clk 0:00:43]} 43. Rb2 {[%clk 0:00:09]}  Re8 {[%clk 0:00:42]} 44. Qf2 {[%clk 0:00:08]}  Ba6 {[%clk 0:00:36]} 45. Rd2 {[%clk 0:00:08]}  Bc8 {[%clk 0:00:33]} 46. Re2 {[%clk 0:00:07]}  h5 {[%clk 0:00:33]} 47. Rxe8+ {[%clk 0:00:07]}  Qxe8 {[%clk 0:00:33]} 48. Kf1 {[%clk 0:00:07]}  hxg4 {[%clk 0:00:33]} 49. fxg4 {[%clk 0:00:08]}  Bxg4 {[%clk 0:00:33]} 50. Qg2 {[%clk 0:00:08]}  Qh5 {[%clk 0:00:30]} 51. Nd3 {[%clk 0:00:04]}  Qf5+ {[%clk 0:00:30]} 52. Nf2 {[%clk 0:00:03]}  Qb1+ {[%clk 0:00:26]} 53. Nd1 {[%clk 0:00:03]}  Qxd1+ {[%clk 0:00:26]} 54. Kf2 {[%clk 0:00:03]}  Qe2+ {[%clk 0:00:27]} 55. Kg3 {[%clk 0:00:03]}  Qxg2+ {[%clk 0:00:27]} 56. Kxg2 {[%clk 0:00:04]}  Bf5 {[%clk 0:00:28]} 57. Kg3 {[%clk 0:00:04]}  Be4 {[%clk 0:00:29]} 58. Kf4 {[%clk 0:00:04]}  Kh7 {[%clk 0:00:29]} 59. h5 {[%clk 0:00:05]}  Kh6 {[%clk 0:00:29]} 60. Kg3 {[%clk 0:00:06]}  Kxh5 {[%clk 0:00:30]} 61. Kf4 {[%clk 0:00:06]}  g5+ {[%clk 0:00:30]} 62. Kg3 {[%clk 0:00:07]}  f5 {[%clk 0:00:31]} 63. Kf2 {[%clk 0:00:08]}  f4 {[%clk 0:00:32]} 64. Kf1 {[%clk 0:00:08]}  g4 {[%clk 0:00:33]} 65. Kg1 {[%clk 0:00:09]}  g3 {[%clk 0:00:34]} 66. Kf1 {[%clk 0:00:09]}  f3 {[%clk 0:00:35]} 67. Kg1 {[%clk 0:00:10]}  f2+ {[%clk 0:00:35]} 68. Kf1 {[%clk 0:00:11]}  Bd3+ {[%clk 0:00:35]} 69. Kg2 {[%clk 0:00:12]}  f1=Q+ {[%clk 0:00:36]} 70. Kxg3 {[%clk 0:00:12]}  Qg1+ {[%clk 0:00:35]} 71. Kf3 {[%clk 0:00:13]}  Be4+ {[%clk 0:00:34]} 72. Kf4 {[%clk 0:00:12]}  Qg5# {[%clk 0:00:34]} 0-1


[Site "https://www.chess.com"]

[Event "Titled Tuesday Blitz November 29 Early 2022"]
[White "Fromm, Marius"]
[Black "Zivkovic, Nemanja"]
[WhiteFideId "12993190"]
[BlackFideId "942154"]
[WhiteElo "2325"]
[BlackElo "2372"]
[Result "1-0"]
[Round "11"]
[TimeControl "180+1"]
[Date "2022.11.30"]
[WhiteClock "0:00:49"]
[BlackClock "0:00:03"]

1. e4 {[%clk 0:03:00]}  c5 {[%clk 0:02:58]} 2. Nf3 {[%clk 0:03:00]}  d6 {[%clk 0:02:57]} 3. d4 {[%clk 0:03:00]}  cxd4 {[%clk 0:02:57]} 4. Nxd4 {[%clk 0:03:01]}  Nf6 {[%clk 0:02:52]} 5. Nc3 {[%clk 0:03:01]}  a6 {[%clk 0:02:50]} 6. g3 {[%clk 0:03:01]}  e5 {[%clk 0:02:44]} 7. Nde2 {[%clk 0:03:02]}  Nbd7 {[%clk 0:02:39]} 8. a4 {[%clk 0:03:00]}  Nc5 {[%clk 0:02:37]} 9. Bg2 {[%clk 0:03:01]}  h5 {[%clk 0:02:34]} 10. Bg5 {[%clk 0:03:00]}  Be7 {[%clk 0:02:35]} 11. O-O {[%clk 0:02:49]}  b6 {[%clk 0:02:25]} 12. Bxf6 {[%clk 0:02:37]}  Bxf6 {[%clk 0:02:25]} 13. Nd5 {[%clk 0:02:38]}  h4 {[%clk 0:02:15]} 14. b4 {[%clk 0:02:25]}  Ne6 {[%clk 0:01:23]} 15. Qd3 {[%clk 0:02:19]}  hxg3 {[%clk 0:01:20]} 16. hxg3 {[%clk 0:02:01]}  Ng5 {[%clk 0:01:10]} 17. Rfd1 {[%clk 0:02:01]}  Bg4 {[%clk 0:00:50]} 18. f3 {[%clk 0:01:52]}  Bh3 {[%clk 0:00:33]} 19. Bxh3 {[%clk 0:01:47]}  Nxh3+ {[%clk 0:00:34]} 20. Kg2 {[%clk 0:01:47]}  Ng5 {[%clk 0:00:34]} 21. Rh1 {[%clk 0:01:45]}  O-O {[%clk 0:00:28]} 22. Nec3 {[%clk 0:01:33]}  Ne6 {[%clk 0:00:21]} 23. Nxf6+ {[%clk 0:01:28]}  Qxf6 {[%clk 0:00:19]} 24. Nd5 {[%clk 0:01:29]}  Qg6 {[%clk 0:00:18]} 25. Rh4 {[%clk 0:01:28]}  Qg5 {[%clk 0:00:14]} 26. Rg4 {[%clk 0:01:24]}  Qd8 {[%clk 0:00:13]} 27. Rh1 {[%clk 0:01:24]}  f6 {[%clk 0:00:11]} 28. Qb3 {[%clk 0:01:14]}  Re8 {[%clk 0:00:11]} 29. f4 {[%clk 0:01:11]}  Kf8 {[%clk 0:00:06]} 30. f5 {[%clk 0:01:01]}  Nd4 {[%clk 0:00:05]} 31. Qa2 {[%clk 0:00:55]}  Qc8 {[%clk 0:00:03]} 32. c3 {[%clk 0:00:49]} 1-0


[Site "https://www.chess.com"]

[Event "Titled Tuesday Blitz November 29 Early 2022"]
[White "Gheorghiu, Calin"]
[Black "Sengupta, Deep"]
[WhiteFideId "1200305"]
[BlackFideId "5008352"]
[WhiteElo "2225"]
[BlackElo "2397"]
[Result "0-1"]
[Round "11"]
[TimeControl "180+1"]
[Date "2022.11.30"]
[WhiteClock "0:00:02"]
[BlackClock "0:00:08"]

1. e4 {[%clk 0:03:00]}  g6 {[%clk 0:02:59]} 2. d4 {[%clk 0:03:00]}  Bg7 {[%clk 0:02:59]} 3. Nc3 {[%clk 0:03:00]}  c6 {[%clk 0:02:59]} 4. f4 {[%clk 0:02:56]}  d5 {[%clk 0:02:58]} 5. e5 {[%clk 0:02:57]}  h5 {[%clk 0:02:57]} 6. Nf3 {[%clk 0:02:56]}  Nh6 {[%clk 0:02:57]} 7. Be2 {[%clk 0:02:57]}  Bg4 {[%clk 0:02:56]} 8. Be3 {[%clk 0:02:57]}  Nf5 {[%clk 0:02:56]} 9. Bf2 {[%clk 0:02:57]}  e6 {[%clk 0:02:54]} 10. h3 {[%clk 0:02:45]}  Bxf3 {[%clk 0:02:54]} 11. Bxf3 {[%clk 0:02:46]}  h4 {[%clk 0:02:54]} 12. O-O {[%clk 0:02:39]}  Nd7 {[%clk 0:02:51]} 13. b4 {[%clk 0:02:37]}  Bf8 {[%clk 0:02:49]} 14. a3 {[%clk 0:02:36]}  a5 {[%clk 0:02:48]} 15. b5 {[%clk 0:02:35]}  c5 {[%clk 0:02:48]} 16. Ne2 {[%clk 0:02:30]}  cxd4 {[%clk 0:02:45]} 17. Nxd4 {[%clk 0:02:30]}  Bc5 {[%clk 0:02:41]} 18. c3 {[%clk 0:02:27]}  Qb6 {[%clk 0:02:40]} 19. a4 {[%clk 0:02:26]}  Rc8 {[%clk 0:02:33]} 20. Ra2 {[%clk 0:02:22]}  Qa7 {[%clk 0:02:27]} 21. Rc2 {[%clk 0:02:10]}  Nb6 {[%clk 0:02:26]} 22. Nxf5 {[%clk 0:01:32]}  gxf5 {[%clk 0:02:24]} 23. Bxc5 {[%clk 0:01:22]}  Rxc5 {[%clk 0:02:23]} 24. Kh1 {[%clk 0:01:23]}  Qb8 {[%clk 0:02:11]} 25. Be2 {[%clk 0:01:08]}  Qc7 {[%clk 0:02:10]} 26. Rf3 {[%clk 0:01:07]}  Nxa4 {[%clk 0:01:59]} 27. Qe1 {[%clk 0:01:02]}  Nb6 {[%clk 0:01:56]} 28. g4 {[%clk 0:00:59]}  hxg3 {[%clk 0:01:54]} 29. Qxg3 {[%clk 0:00:57]}  Qe7 {[%clk 0:01:50]} 30. Qg7 {[%clk 0:00:51]}  Qf8 {[%clk 0:01:48]} 31. Qg1 {[%clk 0:00:45]}  Rg8 {[%clk 0:01:29]} 32. Qf2 {[%clk 0:00:37]}  Nc4 {[%clk 0:01:28]} 33. Bxc4 {[%clk 0:00:35]}  Rxc4 {[%clk 0:01:19]} 34. Qa7 {[%clk 0:00:33]}  Qc5 {[%clk 0:00:45]} 35. Qa8+ {[%clk 0:00:15]}  Qc8 {[%clk 0:00:45]} 36. Qxa5 {[%clk 0:00:15]}  Rg6 {[%clk 0:00:41]} 37. Qb6 {[%clk 0:00:10]}  Kf8 {[%clk 0:00:40]} 38. Rg2 {[%clk 0:00:04]}  Qc7 {[%clk 0:00:17]} 39. Qa7 {[%clk 0:00:02]}  Rxg2 {[%clk 0:00:16]} 40. Kxg2 {[%clk 0:00:02]}  Rxc3 {[%clk 0:00:11]} 41. Rxc3 {[%clk 0:00:02]}  Qxc3 {[%clk 0:00:11]} 42. Qxb7 {[%clk 0:00:01]}  Qd2+ {[%clk 0:00:12]} 43. Kh1 {[%clk 0:00:01]}  Qe1+ {[%clk 0:00:10]} 44. Kg2 {[%clk 0:00:01]}  Qe4+ {[%clk 0:00:10]} 45. Kg1 {[%clk 0:00:01]}  Qxf4 {[%clk 0:00:09]} 46. Qb8+ {[%clk 0:00:01]}  Kg7 {[%clk 0:00:09]} 47. b6 {[%clk 0:00:01]}  Qe3+ {[%clk 0:00:07]} 48. Kh1 {[%clk 0:00:02]}  Qxh3+ {[%clk 0:00:07]} 49. Kg1 {[%clk 0:00:01]}  Qe3+ {[%clk 0:00:08]} 50. Kh1 {[%clk 0:00:02]}  Qf3+ {[%clk 0:00:08]} 51. Kg1 {[%clk 0:00:02]}  d4 {[%clk 0:00:08]} 0-1


[Site "https://www.chess.com"]

[Event "Titled Tuesday Blitz November 29 Early 2022"]
[White "Hambleton, Aman"]
[Black "Salman, Pavel"]
[WhiteFideId "2606577"]
[BlackFideId "24153753"]
[WhiteElo "2538"]
[BlackElo "2187"]
[Result "0-1"]
[Round "11"]
[TimeControl "180+1"]
[Date "2022.11.29"]
[WhiteClock "0:00:01"]
[BlackClock "0:00:13"]

1. d4 {[%clk 0:03:00]}  Nf6 {[%clk 0:02:59]} 2. c4 {[%clk 0:03:00]}  c5 {[%clk 0:02:59]} 3. d5 {[%clk 0:03:01]}  b5 {[%clk 0:02:59]} 4. cxb5 {[%clk 0:03:01]}  a6 {[%clk 0:03:00]} 5. bxa6 {[%clk 0:03:02]}  g6 {[%clk 0:02:59]} 6. Nc3 {[%clk 0:03:02]}  Bg7 {[%clk 0:02:59]} 7. e4 {[%clk 0:03:03]}  O-O {[%clk 0:03:00]} 8. Bd3 {[%clk 0:03:03]}  Qa5 {[%clk 0:02:59]} 9. Ne2 {[%clk 0:03:04]}  Bxa6 {[%clk 0:02:57]} 10. O-O {[%clk 0:03:03]}  e6 {[%clk 0:02:53]} 11. dxe6 {[%clk 0:02:45]}  fxe6 {[%clk 0:02:52]} 12. Bxa6 {[%clk 0:02:39]}  Rxa6 {[%clk 0:02:38]} 13. Bf4 {[%clk 0:00:52]}  Nc6 {[%clk 0:02:02]} 14. Bd6 {[%clk 0:00:32]}  Rc8 {[%clk 0:01:54]} 15. h3 {[%clk 0:00:17]}  Nd4 {[%clk 0:01:06]} 16. e5 {[%clk 0:00:17]}  Ne8 {[%clk 0:00:56]} 17. Nxd4 {[%clk 0:00:18]}  cxd4 {[%clk 0:00:56]} 18. Ne4 {[%clk 0:00:18]}  Bxe5 {[%clk 0:00:55]} 19. b4 {[%clk 0:00:12]}  Qd5 {[%clk 0:00:49]} 20. Bxe5 {[%clk 0:00:12]}  Qxe5 {[%clk 0:00:50]} 21. Nc5 {[%clk 0:00:11]}  Rxc5 {[%clk 0:00:44]} 22. bxc5 {[%clk 0:00:12]}  Qxc5 {[%clk 0:00:45]} 23. Rc1 {[%clk 0:00:11]}  Qe7 {[%clk 0:00:30]} 24. Rc8 {[%clk 0:00:12]}  e5 {[%clk 0:00:29]} 25. Re1 {[%clk 0:00:12]}  Re6 {[%clk 0:00:29]} 26. Qb3 {[%clk 0:00:08]}  Kg7 {[%clk 0:00:29]} 27. a4 {[%clk 0:00:08]}  Nd6 {[%clk 0:00:27]} 28. Rb8 {[%clk 0:00:07]}  e4 {[%clk 0:00:27]} 29. Qb4 {[%clk 0:00:07]}  d3 {[%clk 0:00:25]} 30. Qd4+ {[%clk 0:00:07]}  Qf6 {[%clk 0:00:21]} 31. Qxf6+ {[%clk 0:00:07]}  Kxf6 {[%clk 0:00:22]} 32. a5 {[%clk 0:00:06]}  d2 {[%clk 0:00:22]} 33. Rd1 {[%clk 0:00:07]}  Nc4 {[%clk 0:00:23]} 34. Rb5 {[%clk 0:00:02]}  e3 {[%clk 0:00:16]} 35. fxe3 {[%clk 0:00:03]}  Rxe3 {[%clk 0:00:16]} 36. Kf2 {[%clk 0:00:03]}  Ra3 {[%clk 0:00:17]} 37. Rc5 {[%clk 0:00:02]}  Nd6 {[%clk 0:00:14]} 38. Rd5 {[%clk 0:00:02]}  Ne4+ {[%clk 0:00:14]} 39. Kg1 {[%clk 0:00:02]}  Nc3 {[%clk 0:00:14]} 40. R1xd2 {[%clk 0:00:02]}  Nxd5 {[%clk 0:00:15]} 41. Rxd5 {[%clk 0:00:03]}  Ke6 {[%clk 0:00:16]} 42. Rb5 {[%clk 0:00:04]}  d5 {[%clk 0:00:15]} 43. Kf2 {[%clk 0:00:04]}  Ke5 {[%clk 0:00:15]} 44. h4 {[%clk 0:00:04]}  Ke4 {[%clk 0:00:15]} 45. g4 {[%clk 0:00:02]}  h5 {[%clk 0:00:15]} 46. g5 {[%clk 0:00:02]}  d4 {[%clk 0:00:15]} 47. Rb6 {[%clk 0:00:02]}  Rxa5 {[%clk 0:00:14]} 48. Rxg6 {[%clk 0:00:01]}  Ra2+ {[%clk 0:00:14]} 49. Ke1 {[%clk 0:00:01]}  Kd3 {[%clk 0:00:14]} 50. Rd6 {[%clk 0:00:01]}  Rh2 {[%clk 0:00:13]} 0-1


[Site "https://www.chess.com"]

[Event "Titled Tuesday Blitz November 29 Early 2022"]
[White "Hartikainen, Jarmo"]
[Black "Vifleemskaia, Svetlana"]
[WhiteFideId "503134"]
[BlackFideId "4129490"]
[WhiteElo "2210"]
[BlackElo "1929"]
[Result "0-1"]
[Round "11"]
[TimeControl "180+1"]
[Date "2022.11.30"]
[WhiteClock "0:00:10"]
[BlackClock "0:01:00"]

1. e4 {[%clk 0:03:00]}  e5 {[%clk 0:02:52]} 2. Nf3 {[%clk 0:03:00]}  Nc6 {[%clk 0:02:50]} 3. Bc4 {[%clk 0:02:59]}  Nf6 {[%clk 0:02:48]} 4. Ng5 {[%clk 0:02:59]}  d5 {[%clk 0:02:47]} 5. exd5 {[%clk 0:02:59]}  Na5 {[%clk 0:02:47]} 6. Bb5+ {[%clk 0:02:59]}  c6 {[%clk 0:02:47]} 7. dxc6 {[%clk 0:02:59]}  bxc6 {[%clk 0:02:48]} 8. Bd3 {[%clk 0:02:59]}  Ng4 {[%clk 0:02:46]} 9. Nf3 {[%clk 0:02:42]}  f5 {[%clk 0:02:39]} 10. O-O {[%clk 0:02:09]}  e4 {[%clk 0:02:35]} 11. h3 {[%clk 0:01:48]}  Nxf2 {[%clk 0:02:28]} 12. Rxf2 {[%clk 0:01:37]}  Bc5 {[%clk 0:02:28]} 13. b4 {[%clk 0:01:25]}  Bxf2+ {[%clk 0:02:23]} 14. Kxf2 {[%clk 0:01:25]}  Qb6+ {[%clk 0:02:20]} 15. Kf1 {[%clk 0:01:23]}  Nb7 {[%clk 0:02:19]} 16. Bc4 {[%clk 0:01:16]}  Nd6 {[%clk 0:02:13]} 17. Ne5 {[%clk 0:01:11]}  Nxc4 {[%clk 0:02:03]} 18. Nxc4 {[%clk 0:01:10]}  Qd4 {[%clk 0:02:02]} 19. Nb2 {[%clk 0:01:05]}  O-O {[%clk 0:01:57]} 20. c3 {[%clk 0:01:04]}  Qe5 {[%clk 0:01:55]} 21. d4 {[%clk 0:00:57]}  Qh2 {[%clk 0:01:41]} 22. Be3 {[%clk 0:00:52]}  f4 {[%clk 0:01:36]} 23. Bg1 {[%clk 0:00:52]}  Qg3 {[%clk 0:01:36]} 24. Qe1 {[%clk 0:00:49]}  Qg6 {[%clk 0:01:30]} 25. Nd2 {[%clk 0:00:47]}  Bf5 {[%clk 0:01:18]} 26. Ndc4 {[%clk 0:00:44]}  f3 {[%clk 0:01:15]} 27. g4 {[%clk 0:00:38]}  Be6 {[%clk 0:01:10]} 28. Ne5 {[%clk 0:00:37]}  Qh6 {[%clk 0:01:06]} 29. Qg3 {[%clk 0:00:35]}  Qd2 {[%clk 0:01:05]} 30. Nbc4 {[%clk 0:00:34]}  Qxc3 {[%clk 0:01:03]} 31. Ne3 {[%clk 0:00:11]}  Qxa1+ {[%clk 0:01:00]} 32. Kf2 {[%clk 0:00:10]}  Qxd4 {[%clk 0:01:00]} 0-1


[Site "https://www.chess.com"]

[Event "Titled Tuesday Blitz November 29 Early 2022"]
[White "Havas, Ladislav"]
[Black "Roque Sola, Gisela"]
[WhiteFideId "14501090"]
[BlackFideId "5120241"]
[WhiteElo "2199"]
[BlackElo "1961"]
[Result "1/2-1/2"]
[Round "11"]
[TimeControl "180+1"]
[Date "2022.11.30"]
[WhiteClock "0:01:21"]
[BlackClock "0:00:25"]

1. d4 {[%clk 0:03:00]}  Nf6 {[%clk 0:02:55]} 2. Bg5 {[%clk 0:03:00]}  d5 {[%clk 0:02:50]} 3. Bxf6 {[%clk 0:03:00]}  exf6 {[%clk 0:02:49]} 4. e3 {[%clk 0:02:59]}  Bd6 {[%clk 0:02:49]} 5. c4 {[%clk 0:03:00]}  c6 {[%clk 0:02:48]} 6. cxd5 {[%clk 0:02:59]}  cxd5 {[%clk 0:02:48]} 7. Nc3 {[%clk 0:02:59]}  Be6 {[%clk 0:02:44]} 8. Qb3 {[%clk 0:02:59]}  Nc6 {[%clk 0:02:39]} 9. Qxb7 {[%clk 0:02:53]}  Nb4 {[%clk 0:02:33]} 10. Qb5+ {[%clk 0:02:33]}  Bd7 {[%clk 0:02:19]} 11. Qe2 {[%clk 0:02:32]}  Qa5 {[%clk 0:02:12]} 12. Qd2 {[%clk 0:02:28]}  Rc8 {[%clk 0:02:05]} 13. Bd3 {[%clk 0:02:24]}  Nxd3+ {[%clk 0:01:56]} 14. Qxd3 {[%clk 0:02:24]}  Bb4 {[%clk 0:01:57]} 15. Ne2 {[%clk 0:02:23]}  Bb5 {[%clk 0:01:51]} 16. Qd2 {[%clk 0:02:13]}  Bxe2 {[%clk 0:01:48]} 17. Kxe2 {[%clk 0:02:12]}  Bxc3 {[%clk 0:01:34]} 18. bxc3 {[%clk 0:02:12]}  Rxc3 {[%clk 0:01:35]} 19. Rhc1 {[%clk 0:02:08]}  Qa6+ {[%clk 0:01:32]} 20. Kf3 {[%clk 0:02:00]}  Rxc1 {[%clk 0:01:30]} 21. Rxc1 {[%clk 0:01:59]}  O-O {[%clk 0:01:31]} 22. Rc5 {[%clk 0:01:56]}  Qe6 {[%clk 0:01:18]} 23. Qc2 {[%clk 0:01:53]}  h5 {[%clk 0:01:14]} 24. h3 {[%clk 0:01:53]}  Rb8 {[%clk 0:01:06]} 25. g4 {[%clk 0:01:50]}  hxg4+ {[%clk 0:01:05]} 26. hxg4 {[%clk 0:01:50]}  g6 {[%clk 0:01:01]} 27. Rc6 {[%clk 0:01:45]}  Qe7 {[%clk 0:00:54]} 28. Rc8+ {[%clk 0:01:45]}  Rxc8 {[%clk 0:00:53]} 29. Qxc8+ {[%clk 0:01:45]}  Kg7 {[%clk 0:00:54]} 30. Qc2 {[%clk 0:01:45]}  a5 {[%clk 0:00:50]} 31. Qc5 {[%clk 0:01:43]}  Qe4+ {[%clk 0:00:49]} 32. Kg3 {[%clk 0:01:43]}  a4 {[%clk 0:00:47]} 33. a3 {[%clk 0:01:32]}  f5 {[%clk 0:00:43]} 34. f3 {[%clk 0:01:25]}  Qxe3 {[%clk 0:00:40]} 35. Qxd5 {[%clk 0:01:25]}  f4+ {[%clk 0:00:40]} 36. Kg2 {[%clk 0:01:21]}  Qe2+ {[%clk 0:00:39]} 37. Kg1 {[%clk 0:01:21]}  Qe1+ {[%clk 0:00:34]} 38. Kg2 {[%clk 0:01:21]}  Qe2+ {[%clk 0:00:26]} 39. Kg1 {[%clk 0:01:20]}  Qe1+ {[%clk 0:00:25]} 40. Kg2 {[%clk 0:01:21]}  Qe2+ {[%clk 0:00:25]} 1/2-1/2


[Site "https://www.chess.com"]

[Event "Titled Tuesday Blitz November 29 Early 2022"]
[White "Hirneise, Jens"]
[Black "Roque Sola, Jose Luis"]
[WhiteFideId "24614734"]
[BlackFideId "5120390"]
[WhiteElo "2344"]
[BlackElo "2117"]
[Result "1-0"]
[Round "11"]
[TimeControl "180+1"]
[Date "2022.11.30"]
[WhiteClock "0:01:21"]
[BlackClock "0:00:55"]

1. d4 {[%clk 0:02:51]}  Nf6 {[%clk 0:02:59]} 2. Bg5 {[%clk 0:02:50]}  Ne4 {[%clk 0:02:51]} 3. h4 {[%clk 0:02:49]}  h6 {[%clk 0:02:44]} 4. Bf4 {[%clk 0:02:42]}  d6 {[%clk 0:02:35]} 5. f3 {[%clk 0:02:37]}  Nf6 {[%clk 0:02:33]} 6. e4 {[%clk 0:02:37]}  c5 {[%clk 0:02:27]} 7. dxc5 {[%clk 0:02:34]}  Qa5+ {[%clk 0:02:26]} 8. Nc3 {[%clk 0:02:34]}  Qxc5 {[%clk 0:02:25]} 9. Qd2 {[%clk 0:02:33]}  Nc6 {[%clk 0:02:23]} 10. O-O-O {[%clk 0:02:22]}  e5 {[%clk 0:02:09]} 11. Be3 {[%clk 0:02:20]}  Qa5 {[%clk 0:02:07]} 12. Kb1 {[%clk 0:02:18]}  Be6 {[%clk 0:02:04]} 13. Bb5 {[%clk 0:02:10]}  Be7 {[%clk 0:01:45]} 14. g4 {[%clk 0:02:02]}  a6 {[%clk 0:01:33]} 15. Ba4 {[%clk 0:01:52]}  b5 {[%clk 0:01:29]} 16. Bb3 {[%clk 0:01:51]}  Nd7 {[%clk 0:00:58]} 17. Nge2 {[%clk 0:01:38]}  Nc5 {[%clk 0:00:56]} 18. Bxc5 {[%clk 0:01:25]}  Bxb3 {[%clk 0:00:55]} 19. cxb3 {[%clk 0:01:21]} 1-0


[Site "https://www.chess.com"]

[Event "Titled Tuesday Blitz November 29 Early 2022"]
[White "Ibarra Jerez, Jose Carlos"]
[Black "Postny, Evgeny"]
[WhiteFideId "2226332"]
[BlackFideId "2804344"]
[WhiteElo "2638"]
[BlackElo "2476"]
[Result "1-0"]
[Round "11"]
[TimeControl "180+1"]
[Date "2022.11.29"]
[WhiteClock "0:01:19"]
[BlackClock "0:01:05"]

1. e4 {[%clk 0:02:55]}  d6 {[%clk 0:02:59]} 2. d4 {[%clk 0:02:54]}  Nf6 {[%clk 0:02:59]} 3. Nc3 {[%clk 0:02:54]}  g6 {[%clk 0:03:00]} 4. Bg5 {[%clk 0:02:51]}  Bg7 {[%clk 0:03:00]} 5. e5 {[%clk 0:02:51]}  Nfd7 {[%clk 0:02:57]} 6. exd6 {[%clk 0:02:47]}  cxd6 {[%clk 0:02:56]} 7. Qd2 {[%clk 0:02:47]}  Nc6 {[%clk 0:02:53]} 8. Nf3 {[%clk 0:02:45]}  h6 {[%clk 0:02:46]} 9. Be3 {[%clk 0:02:44]}  Nf6 {[%clk 0:02:45]} 10. d5 {[%clk 0:02:43]}  Nb8 {[%clk 0:02:44]} 11. h3 {[%clk 0:02:42]}  a6 {[%clk 0:02:41]} 12. a4 {[%clk 0:02:42]}  Nbd7 {[%clk 0:02:38]} 13. Bc4 {[%clk 0:02:35]}  Qc7 {[%clk 0:02:36]} 14. Ba2 {[%clk 0:02:29]}  Nc5 {[%clk 0:02:31]} 15. Bd4 {[%clk 0:02:24]}  O-O {[%clk 0:02:27]} 16. O-O {[%clk 0:02:23]}  Nce4 {[%clk 0:02:20]} 17. Nxe4 {[%clk 0:02:20]}  Nxe4 {[%clk 0:02:21]} 18. Qe3 {[%clk 0:02:20]}  Nf6 {[%clk 0:02:19]} 19. Rfe1 {[%clk 0:02:15]}  Re8 {[%clk 0:02:08]} 20. c3 {[%clk 0:01:58]}  Bd7 {[%clk 0:02:01]} 21. Bb3 {[%clk 0:01:52]}  b5 {[%clk 0:01:38]} 22. a5 {[%clk 0:01:51]}  Qb7 {[%clk 0:01:35]} 23. Rad1 {[%clk 0:01:45]}  Rac8 {[%clk 0:01:31]} 24. Re2 {[%clk 0:01:41]}  Nxd5 {[%clk 0:01:20]} 25. Qe4 {[%clk 0:01:35]}  Bc6 {[%clk 0:01:16]} 26. Bxg7 {[%clk 0:01:30]}  Nxc3 {[%clk 0:01:16]} 27. Qxg6 {[%clk 0:01:25]}  Nxe2+ {[%clk 0:01:15]} 28. Kf1 {[%clk 0:01:23]}  Bd5 {[%clk 0:01:05]} 29. Qxh6 {[%clk 0:01:19]} 1-0


[Site "https://www.chess.com"]